Workbook

Sheet E2 levels
A1: Raw data (x = oral E2 mg/day, y = E2 pg/mL) | J1: Combined data | Q1: Graphs
A2: E2, x | B2: E2, y | C2: E2+FIN, x | D2: E2+FIN, y | E2: E2+SPL, x | F2: E2+SPL, y | G2: E2±FIN, x | H2: E2±FIN, y | R2: Oral E2 | S2: Oral E2 + Fin | T2: Oral E2 + Spiro | U2: Oral E2 ± Fin
A3: 0.805 | B3: 26.411 | C3: 1.065 | D3: 29.091 | E3: 1.737 | F3: 43.254 | G3: 0.805 | H3: 26.411 | J3: Oral estradiol only
A4: 0.894 | B4: 83.828 | C4: 1.686 | D4: 65.455 | E4: 1.889 | F4: 116.746 | G4: 0.894 | H4: 83.828 | J4: Dosage | K4: n | L4: Mean E2 dose | M4: SD E2 dose | N4: Mean E2 levels | O4: SD E2 levels
A5: 0.932 | B5: 29.091 | C5: 1.781 | D5: 40.957 | E5: 1.997 | F5: 89.187 | G5: 0.932 | H5: 29.091 | J5: All | K5: =COUNT($A$3:$A$87) -> 85 | L5: =IF($K$5 > 0,AVERAGE($A$3:$A$87),"") -> 4.217 | M5: =IF($K$5 > 1,STDEV($A$3:$A$87),"") -> 1.799 | N5: =IF($K$5 > 0,AVERAGE($B$3:$B$87),"") -> 98.202 | O5: =IF($K$5 > 1,STDEV($B$3:$B$87),"") -> 53.563
A6: 1.040 | B6: 26.411 | C6: 2.060 | D6: 26.029 | E6: 2.105 | F6: 30.239 | G6: 1.040 | H6: 26.411 | J6: 1 mg/day | K6: =COUNTIFS($A$3:$A$87,">=0.5",$A$3:$A$87,"<1.5") -> 4 | L6: =IF($K$6 > 0,AVERAGEIFS($A$3:$A$87,$A$3:$A$87,">=0.5",$A$3:$A$87,"<1.5"),"") -> 0.918 | M6: =IF($K$6 > 1,STDEV(IF($A$3:$A$87 >= 0.5,IF($A$3:$A$87 < 1.5,$A$3:$A$87))),"") -> 0.097 | N6: =IF($K$6 > 0,AVERAGEIFS($B$3:$B$87,$A$3:$A$87,">=0.5",$A$3:$A$87,"<1.5"),"") -> 41.435 | O6: =IF($K$6 > 1,STDEV(IF($A$3:$A$87 >= 0.5,IF($A$3:$A$87 < 1.5,$B$3:$B$87))),"") -> 28.290
A7: 1.712 | B7: 102.201 | C7: 2.124 | D7: 71.196 | E7: 2.295 | F7: 66.603 | G7: 1.065 | H7: 29.091 | J7: 2 mg/day | K7: =COUNTIFS($A$3:$A$87,">=1.5",$A$3:$A$87,"<2.5") -> 20 | L7: =IF($K$7 > 0,AVERAGEIFS($A$3:$A$87,$A$3:$A$87,">=1.5",$A$3:$A$87,"<2.5"),"") -> 2.045 | M7: =IF($K$7 > 1,STDEV(IF($A$3:$A$87 >= 1.5,IF($A$3:$A$87 < 2.5,$A$3:$A$87))),"") -> 0.210 | N7: =IF($K$7 > 0,AVERAGEIFS($B$3:$B$87,$A$3:$A$87,">=1.5",$A$3:$A$87,"<2.5"),"") -> 64.115 | O7: =IF($K$7 > 1,STDEV(IF($A$3:$A$87 >= 1.5,IF($A$3:$A$87 < 2.5,$B$3:$B$87))),"") -> 23.556
A8: 1.743 | B8: 56.268 | C8: 2.758 | D8: 62.775 | E8: 2.320 | F8: 45.933 | G8: 1.686 | H8: 65.455 | J8: 3 mg/day | K8: =COUNTIFS($A$3:$A$87,">=2.5",$A$3:$A$87,"<3.5") -> 1 | L8: =IF($K$8 > 0,AVERAGEIFS($A$3:$A$87,$A$3:$A$87,">=2.5",$A$3:$A$87,"<3.5"),"") -> 2.998 | M8: =IF($K$8 > 1,STDEV(IF($A$3:$A$87 >= 2.5,IF($A$3:$A$87 < 3.5,$A$3:$A$87))),"") ->  | N8: =IF($K$8 > 0,AVERAGEIFS($B$3:$B$87,$A$3:$A$87,">=2.5",$A$3:$A$87,"<3.5"),"") -> 70.431 | O8: =IF($K$8 > 1,STDEV(IF($A$3:$A$87 >= 2.5,IF($A$3:$A$87 < 3.5,$B$3:$B$87))),"") -> 
A9: 1.775 | B9: 65.455 | C9: 2.986 | D9: 84.976 | E9: 3.683 | F9: 75.024 | G9: 1.712 | H9: 102.201 | J9: 4 mg/day | K9: =COUNTIFS($A$3:$A$87,">=3.5",$A$3:$A$87,"<4.5") -> 27 | L9: =IF($K$9 > 0,AVERAGEIFS($A$3:$A$87,$A$3:$A$87,">=3.5",$A$3:$A$87,"<4.5"),"") -> 4.020 | M9: =IF($K$9 > 1,STDEV(IF($A$3:$A$87 >= 3.5,IF($A$3:$A$87 < 4.5,$A$3:$A$87))),"") -> 0.153 | N9: =IF($K$9 > 0,AVERAGEIFS($B$3:$B$87,$A$3:$A$87,">=3.5",$A$3:$A$87,"<4.5"),"") -> 91.327 | O9: =IF($K$9 > 1,STDEV(IF($A$3:$A$87 >= 3.5,IF($A$3:$A$87 < 4.5,$B$3:$B$87))),"") -> 38.994
A10: 1.781 | B10: 51.675 | C10: 3.835 | D10: 108.708 | E10: 3.708 | F10: 175.311 | G10: 1.743 | H10: 56.268 | J10: 5 mg/day | K10: =COUNTIFS($A$3:$A$87,">=4.5",$A$3:$A$87,"<5.5") -> 0 | L10: =IF($K$10 > 0,AVERAGEIFS($A$3:$A$87,$A$3:$A$87,">=4.5",$A$3:$A$87,"<5.5"),"") ->  | M10: =IF($K$10 > 1,STDEV(IF($A$3:$A$87 >= 4.5,IF($A$3:$A$87 < 5.5,$A$3:$A$87))),"") ->  | N10: =IF($K$10 > 0,AVERAGEIFS($B$3:$B$87,$A$3:$A$87,">=4.5",$A$3:$A$87,"<5.5"),"") ->  | O10: =IF($K$10 > 1,STDEV(IF($A$3:$A$87 >= 4.5,IF($A$3:$A$87 < 5.5,$B$3:$B$87))),"") -> 
A11: 1.800 | B11: 28.708 | C11: 3.924 | D11: 108.708 | E11: 3.708 | F11: 138.947 | G11: 1.775 | H11: 65.455 | J11: 6 mg/day | K11: =COUNTIFS($A$3:$A$87,">=5.5",$A$3:$A$87,"<6.5") -> 31 | L11: =IF($K$11 > 0,AVERAGEIFS($A$3:$A$87,$A$3:$A$87,">=5.5",$A$3:$A$87,"<6.5"),"") -> 6.007 | M11: =IF($K$11 > 1,STDEV(IF($A$3:$A$87 >= 5.5,IF($A$3:$A$87 < 6.5,$A$3:$A$87))),"") -> 0.181 | N11: =IF($K$11 > 0,AVERAGEIFS($B$3:$B$87,$A$3:$A$87,">=5.5",$A$3:$A$87,"<6.5"),"") -> 135.996 | O11: =IF($K$11 > 1,STDEV(IF($A$3:$A$87 >= 5.5,IF($A$3:$A$87 < 6.5,$B$3:$B$87))),"") -> 59.111
A12: 1.800 | B12: 26.411 | C12: 4.044 | D12: 57.416 | E12: 3.772 | F12: 128.612 | G12: 1.781 | H12: 51.675 | J12: 7 mg/day | K12: =COUNTIFS($A$3:$A$87,">=6.5",$A$3:$A$87,"<7.5") -> 0 | L12: =IF($K$12 > 0,AVERAGEIFS($A$3:$A$87,$A$3:$A$87,">=6.5",$A$3:$A$87,"<7.5"),"") ->  | M12: =IF($K$12 > 1,STDEV(IF($A$3:$A$87 >= 6.5,IF($A$3:$A$87 < 7.5,$A$3:$A$87))),"") ->  | N12: =IF($K$12 > 0,AVERAGEIFS($B$3:$B$87,$A$3:$A$87,">=6.5",$A$3:$A$87,"<7.5"),"") ->  | O12: =IF($K$12 > 1,STDEV(IF($A$3:$A$87 >= 6.5,IF($A$3:$A$87 < 7.5,$B$3:$B$87))),"") -> 
A13: 1.952 | B13: 42.105 | C13: 4.076 | D13: 362.105 | E13: 3.791 | F13: 53.971 | G13: 1.781 | H13: 40.957 | J13: 8 mg/day | K13: =COUNTIFS($A$3:$A$87,">=7.5",$A$3:$A$87,"<8.5") -> 2 | L13: =IF($K$13 > 0,AVERAGEIFS($A$3:$A$87,$A$3:$A$87,">=7.5",$A$3:$A$87,"<8.5"),"") -> 8.076 | M13: =IF($K$13 > 1,STDEV(IF($A$3:$A$87 >= 7.5,IF($A$3:$A$87 < 8.5,$A$3:$A$87))),"") -> 0.108 | N13: =IF($K$13 > 0,AVERAGEIFS($B$3:$B$87,$A$3:$A$87,">=7.5",$A$3:$A$87,"<8.5"),"") -> 73.493 | O13: =IF($K$13 > 1,STDEV(IF($A$3:$A$87 >= 7.5,IF($A$3:$A$87 < 8.5,$B$3:$B$87))),"") -> 3.789
A14: 1.971 | B14: 50.144 | C14: 4.228 | D14: 109.856 | E14: 3.791 | F14: 141.627 | G14: 1.800 | H14: 28.708
A15: 2.060 | B15: 35.598 | C15: 4.273 | D15: 143.541 | E15: 3.835 | F15: 93.397 | G15: 1.800 | H15: 26.411 | J15: Oral estradiol + finasteride
A16: 2.086 | B16: 50.144 | C16: 4.298 | D16: 112.536 | E16: 3.861 | F16: 83.828 | G16: 1.952 | H16: 42.105 | J16: Dosage | K16: n | L16: Mean E2 dose | M16: SD E2 dose | N16: Mean E2 levels | O16: SD E2 levels
A17: 2.124 | B17: 73.876 | C17: 5.699 | D17: 236.938 | E17: 3.861 | F17: 78.469 | G17: 1.971 | H17: 50.144 | J17: All | K17: =COUNT($C$3:$C$87) -> 85 | L17: =IF($K$17 > 0,AVERAGE($C$3:$C$87),"") -> 6.017 | M17: =IF($K$17 > 1,STDEV($C$3:$C$87),"") -> 1.635 | N17: =IF($K$17 > 0,AVERAGE($D$3:$D$87),"") -> 127.356 | O17: =IF($K$17 > 1,STDEV($D$3:$D$87),"") -> 73.084
A18: 2.143 | B18: 104.880 | C18: 5.699 | D18: 144.306 | E18: 3.861 | F18: 63.158 | G18: 2.060 | H18: 35.598 | J18: 1 mg/day | K18: =COUNTIFS($C$3:$C$87,">=0.5",$C$3:$C$87,"<1.5") -> 1 | L18: =IF($K$18 > 0,AVERAGEIFS($C$3:$C$87,$C$3:$C$87,">=0.5",$C$3:$C$87,"<1.5"),"") -> 1.065 | M18: =IF($K$18 > 1,STDEV(IF($C$3:$C$87 >= 0.5,IF($C$3:$C$87 < 1.5,$C$3:$C$87))),"") ->  | N18: =IF($K$18 > 0,AVERAGEIFS($D$3:$D$87,$C$3:$C$87,">=0.5",$C$3:$C$87,"<1.5"),"") -> 29.091 | O18: =IF($K$18 > 1,STDEV(IF($C$3:$C$87 >= 0.5,IF($C$3:$C$87 < 1.5,$D$3:$D$87))),"") -> 
A19: 2.143 | B19: 62.775 | C19: 5.724 | D19: 174.163 | E19: 3.930 | F19: 50.144 | G19: 2.060 | H19: 26.029 | J19: 2 mg/day | K19: =COUNTIFS($C$3:$C$87,">=1.5",$C$3:$C$87,"<2.5") -> 4 | L19: =IF($K$19 > 0,AVERAGEIFS($C$3:$C$87,$C$3:$C$87,">=1.5",$C$3:$C$87,"<2.5"),"") -> 1.913 | M19: =IF($K$19 > 1,STDEV(IF($C$3:$C$87 >= 1.5,IF($C$3:$C$87 < 2.5,$C$3:$C$87))),"") -> 0.212 | N19: =IF($K$19 > 0,AVERAGEIFS($D$3:$D$87,$C$3:$C$87,">=1.5",$C$3:$C$87,"<2.5"),"") -> 50.909 | O19: =IF($K$19 > 1,STDEV(IF($C$3:$C$87 >= 1.5,IF($C$3:$C$87 < 2.5,$D$3:$D$87))),"") -> 21.144
A20: 2.187 | B20: 78.469 | C20: 5.724 | D20: 76.172 | E20: 3.949 | F20: 94.163 | G20: 2.086 | H20: 50.144 | J20: 3 mg/day | K20: =COUNTIFS($C$3:$C$87,">=2.5",$C$3:$C$87,"<3.5") -> 2 | L20: =IF($K$20 > 0,AVERAGEIFS($C$3:$C$87,$C$3:$C$87,">=2.5",$C$3:$C$87,"<3.5"),"") -> 2.872 | M20: =IF($K$20 > 1,STDEV(IF($C$3:$C$87 >= 2.5,IF($C$3:$C$87 < 3.5,$C$3:$C$87))),"") -> 0.161 | N20: =IF($K$20 > 0,AVERAGEIFS($D$3:$D$87,$C$3:$C$87,">=2.5",$C$3:$C$87,"<3.5"),"") -> 73.876 | O20: =IF($K$20 > 1,STDEV(IF($C$3:$C$87 >= 2.5,IF($C$3:$C$87 < 3.5,$D$3:$D$87))),"") -> 15.698
A21: 2.212 | B21: 89.187 | C21: 5.724 | D21: 65.455 | E21: 3.949 | F21: 44.785 | G21: 2.124 | H21: 73.876 | J21: 4 mg/day | K21: =COUNTIFS($C$3:$C$87,">=3.5",$C$3:$C$87,"<4.5") -> 7 | L21: =IF($K$21 > 0,AVERAGEIFS($C$3:$C$87,$C$3:$C$87,">=3.5",$C$3:$C$87,"<4.5"),"") -> 4.097 | M21: =IF($K$21 > 1,STDEV(IF($C$3:$C$87 >= 3.5,IF($C$3:$C$87 < 4.5,$C$3:$C$87))),"") -> 0.178 | N21: =IF($K$21 > 0,AVERAGEIFS($D$3:$D$87,$C$3:$C$87,">=3.5",$C$3:$C$87,"<4.5"),"") -> 143.267 | O21: =IF($K$21 > 1,STDEV(IF($C$3:$C$87 >= 3.5,IF($C$3:$C$87 < 4.5,$D$3:$D$87))),"") -> 99.758
A22: 2.263 | B22: 78.852 | C22: 5.724 | D22: 21.053 | E22: 3.962 | F22: 78.469 | G22: 2.124 | H22: 71.196 | J22: 5 mg/day | K22: =COUNTIFS($C$3:$C$87,">=4.5",$C$3:$C$87,"<5.5") -> 0 | L22: =IF($K$22 > 0,AVERAGEIFS($C$3:$C$87,$C$3:$C$87,">=4.5",$C$3:$C$87,"<5.5"),"") ->  | M22: =IF($K$22 > 1,STDEV(IF($C$3:$C$87 >= 4.5,IF($C$3:$C$87 < 5.5,$C$3:$C$87))),"") ->  | N22: =IF($K$22 > 0,AVERAGEIFS($D$3:$D$87,$C$3:$C$87,">=4.5",$C$3:$C$87,"<5.5"),"") ->  | O22: =IF($K$22 > 1,STDEV(IF($C$3:$C$87 >= 4.5,IF($C$3:$C$87 < 5.5,$D$3:$D$87))),"") -> 
A23: 2.276 | B23: 90.718 | C23: 5.731 | D23: 44.785 | E23: 3.994 | F23: 56.651 | G23: 2.143 | H23: 104.880 | J23: 6 mg/day | K23: =COUNTIFS($C$3:$C$87,">=5.5",$C$3:$C$87,"<6.5") -> 49 | L23: =IF($K$23 > 0,AVERAGEIFS($C$3:$C$87,$C$3:$C$87,">=5.5",$C$3:$C$87,"<6.5"),"") -> 5.978 | M23: =IF($K$23 > 1,STDEV(IF($C$3:$C$87 >= 5.5,IF($C$3:$C$87 < 6.5,$C$3:$C$87))),"") -> 0.179 | N23: =IF($K$23 > 0,AVERAGEIFS($D$3:$D$87,$C$3:$C$87,">=5.5",$C$3:$C$87,"<6.5"),"") -> 117.871 | O23: =IF($K$23 > 1,STDEV(IF($C$3:$C$87 >= 5.5,IF($C$3:$C$87 < 6.5,$D$3:$D$87))),"") -> 62.973
A24: 2.276 | B24: 88.038 | C24: 5.769 | D24: 146.603 | E24: 4.025 | F24: 46.316 | G24: 2.143 | H24: 62.775 | J24: 7 mg/day | K24: =COUNTIFS($C$3:$C$87,">=6.5",$C$3:$C$87,"<7.5") -> 0 | L24: =IF($K$24 > 0,AVERAGEIFS($C$3:$C$87,$C$3:$C$87,">=6.5",$C$3:$C$87,"<7.5"),"") ->  | M24: =IF($K$24 > 1,STDEV(IF($C$3:$C$87 >= 6.5,IF($C$3:$C$87 < 7.5,$C$3:$C$87))),"") ->  | N24: =IF($K$24 > 0,AVERAGEIFS($D$3:$D$87,$C$3:$C$87,">=6.5",$C$3:$C$87,"<7.5"),"") ->  | O24: =IF($K$24 > 1,STDEV(IF($C$3:$C$87 >= 6.5,IF($C$3:$C$87 < 7.5,$D$3:$D$87))),"") -> 
A25: 2.276 | B25: 43.636 | C25: 5.769 | D25: 141.244 | E25: 4.032 | F25: 159.617 | G25: 2.187 | H25: 78.469 | J25: 8 mg/day | K25: =COUNTIFS($C$3:$C$87,">=7.5",$C$3:$C$87,"<8.5") -> 22 | L25: =AVERAGEIFS($C$3:$C$87,$C$3:$C$87,">=7.5",$C$3:$C$87,"<8.5") -> 7.975 | M25: =IF($K$25 > 1,STDEV(IF($C$3:$C$87 >= 7.5,IF($C$3:$C$87 < 8.5,$C$3:$C$87))),"") -> 0.175 | N25: =IF($K$25 > 0,AVERAGEIFS($D$3:$D$87,$C$3:$C$87,">=7.5",$C$3:$C$87,"<8.5"),"") -> 166.646 | O25: =IF($K$25 > 1,STDEV(IF($C$3:$C$87 >= 7.5,IF($C$3:$C$87 < 8.5,$D$3:$D$87))),"") -> 75.000
A26: 2.326 | B26: 63.158 | C26: 5.788 | D26: 252.249 | E26: 4.032 | F26: 140.096 | G26: 2.212 | H26: 89.187
A27: 2.998 | B27: 70.431 | C27: 5.788 | D27: 31.770 | E27: 4.032 | F27: 122.105 | G27: 2.263 | H27: 78.852 | J27: Oral estradiol + spironolactone
A28: 3.765 | B28: 51.292 | C28: 5.794 | D28: 109.474 | E28: 4.032 | F28: 95.694 | G28: 2.276 | H28: 90.718 | J28: Dosage | K28: n | L28: Mean E2 dose | M28: SD E2 dose | N28: Mean E2 levels | O28: SD E2 levels
A29: 3.797 | B29: 43.254 | C29: 5.807 | D29: 175.694 | E29: 4.051 | F29: 81.148 | G29: 2.276 | H29: 88.038 | J29: All | K29: =COUNT($E$3:$E$107) -> 105 | L29: =IF($K$29 > 0,AVERAGE($E$3:$E$107),"") -> 5.650 | M29: =IF($K$29 > 1,STDEV($E$3:$E$107),"") -> 1.664 | N29: =IF($K$29 > 0,AVERAGE($F$3:$F$107),"") -> 102.292 | O29: =IF($K$29 > 1,STDEV($F$3:$F$107),"") -> 56.368
A30: 3.797 | B30: 157.321 | C30: 5.826 | D30: 135.502 | E30: 4.057 | F30: 26.794 | G30: 2.276 | H30: 43.636 | J30: 1 mg/day | K30: =COUNTIFS($E$3:$E$107,">=0.5",$E$3:$E$107,"<1.5") -> 0 | L30: =IF($K$30 > 0,AVERAGEIFS($E$3:$E$107,$E$3:$E$107,">=0.5",$E$3:$E$107,"<1.5"),"") ->  | M30: =IF($K$30 > 1,STDEV(IF($E$3:$E$107 >= 0.5,IF($E$3:$E$107 < 1.5,$E$3:$E$107))),"") ->  | N30: =IF($K$30 > 0,AVERAGEIFS($F$3:$F$107,$E$3:$E$107,">=0.5",$E$3:$E$107,"<1.5"),"") ->  | O30: =IF($K$30 > 1,STDEV(IF($E$3:$E$107 >= 0.5,IF($E$3:$E$107 < 1.5,$F$3:$F$107))),"") -> 
A31: 3.816 | B31: 74.641 | C31: 5.826 | D31: 69.282 | E31: 4.076 | F31: 84.211 | G31: 2.326 | H31: 63.158 | J31: 2 mg/day | K31: =COUNTIFS($E$3:$E$107,">=1.5",$E$3:$E$107,"<2.5") -> 6 | L31: =IF($K$31 > 0,AVERAGEIFS($E$3:$E$107,$E$3:$E$107,">=1.5",$E$3:$E$107,"<2.5"),"") -> 2.057 | M31: =IF($K$31 > 1,STDEV(IF($E$3:$E$107 >= 1.5,IF($E$3:$E$107 < 2.5,$E$3:$E$107))),"") -> 0.229 | N31: =IF($K$31 > 0,AVERAGEIFS($F$3:$F$107,$E$3:$E$107,">=1.5",$E$3:$E$107,"<2.5"),"") -> 65.327 | O31: =IF($K$31 > 1,STDEV(IF($E$3:$E$107 >= 1.5,IF($E$3:$E$107 < 2.5,$F$3:$F$107))),"") -> 32.586
A32: 3.842 | B32: 39.426 | C32: 5.857 | D32: 58.947 | E32: 4.095 | F32: 92.632 | G32: 2.758 | H32: 62.775 | J32: 3 mg/day | K32: =COUNTIFS($E$3:$E$107,">=2.5",$E$3:$E$107,"<3.5") -> 0 | L32: =IF($K$32 > 0,AVERAGEIFS($E$3:$E$107,$E$3:$E$107,">=2.5",$E$3:$E$107,"<3.5"),"") ->  | M32: =IF($K$32 > 1,STDEV(IF($E$3:$E$107 >= 2.5,IF($E$3:$E$107 < 3.5,$E$3:$E$107))),"") ->  | N32: =IF($K$32 > 0,AVERAGEIFS($F$3:$F$107,$E$3:$E$107,">=2.5",$E$3:$E$107,"<3.5"),"") ->  | O32: =IF($K$32 > 1,STDEV(IF($E$3:$E$107 >= 2.5,IF($E$3:$E$107 < 3.5,$F$3:$F$107))),"") -> 
A33: 3.905 | B33: 74.641 | C33: 5.876 | D33: 320.383 | E33: 4.120 | F33: 151.579 | G33: 2.986 | H33: 84.976 | J33: 4 mg/day | K33: =COUNTIFS($E$3:$E$107,">=3.5",$E$3:$E$107,"<4.5") -> 28 | L33: =IF($K$33 > 0,AVERAGEIFS($E$3:$E$107,$E$3:$E$107,">=3.5",$E$3:$E$107,"<4.5"),"") -> 3.962 | M33: =IF($K$33 > 1,STDEV(IF($E$3:$E$107 >= 3.5,IF($E$3:$E$107 < 4.5,$E$3:$E$107))),"") -> 0.161 | N33: =IF($K$33 > 0,AVERAGEIFS($F$3:$F$107,$E$3:$E$107,">=3.5",$E$3:$E$107,"<4.5"),"") -> 90.923 | O33: =IF($K$33 > 1,STDEV(IF($E$3:$E$107 >= 3.5,IF($E$3:$E$107 < 4.5,$F$3:$F$107))),"") -> 39.293
A34: 3.905 | B34: 112.536 | C34: 5.883 | D34: 164.211 | E34: 4.165 | F34: 70.813 | G34: 2.998 | H34: 70.431 | J34: 5 mg/day | K34: =COUNTIFS($E$3:$E$107,">=4.5",$E$3:$E$107,"<5.5") -> 0 | L34: =IF($K$34 > 0,AVERAGEIFS($E$3:$E$107,$E$3:$E$107,">=4.5",$E$3:$E$107,"<5.5"),"") ->  | M34: =IF($K$34 > 1,STDEV(IF($E$3:$E$107 >= 4.5,IF($E$3:$E$107 < 5.5,$E$3:$E$107))),"") ->  | N34: =IF($K$34 > 0,AVERAGEIFS($F$3:$F$107,$E$3:$E$107,">=4.5",$E$3:$E$107,"<5.5"),"") ->  | O34: =IF($K$34 > 1,STDEV(IF($E$3:$E$107 >= 4.5,IF($E$3:$E$107 < 5.5,$F$3:$F$107))),"") -> 
A35: 3.918 | B35: 88.804 | C35: 5.895 | D35: 44.785 | E35: 4.254 | F35: 53.971 | G35: 3.765 | H35: 51.292 | J35: 6 mg/day | K35: =COUNTIFS($E$3:$E$107,">=5.5",$E$3:$E$107,"<6.5") -> 49 | L35: =IF($K$35 > 0,AVERAGEIFS($E$3:$E$107,$E$3:$E$107,">=5.5",$E$3:$E$107,"<6.5"),"") -> 5.999 | M35: =IF($K$35 > 1,STDEV(IF($E$3:$E$107 >= 5.5,IF($E$3:$E$107 < 6.5,$E$3:$E$107))),"") -> 0.183 | N35: =IF($K$35 > 0,AVERAGEIFS($F$3:$F$107,$E$3:$E$107,">=5.5",$E$3:$E$107,"<6.5"),"") -> 119.035 | O35: =IF($K$35 > 1,STDEV(IF($E$3:$E$107 >= 5.5,IF($E$3:$E$107 < 6.5,$F$3:$F$107))),"") -> 66.138
A36: 3.924 | B36: 65.455 | C36: 5.940 | D36: 127.081 | E36: 4.317 | F36: 64.306 | G36: 3.797 | H36: 43.254 | J36: 7 mg/day | K36: =COUNTIFS($E$3:$E$107,">=6.5",$E$3:$E$107,"<7.5") -> 0 | L36: =IF($K$36 > 0,AVERAGEIFS($E$3:$E$107,$E$3:$E$107,">=6.5",$E$3:$E$107,"<7.5"),"") ->  | M36: =IF($K$36 > 1,STDEV(IF($E$3:$E$107 >= 6.5,IF($E$3:$E$107 < 7.5,$E$3:$E$107))),"") ->  | N36: =IF($K$36 > 0,AVERAGEIFS($F$3:$F$107,$E$3:$E$107,">=6.5",$E$3:$E$107,"<7.5"),"") ->  | O36: =IF($K$36 > 1,STDEV(IF($E$3:$E$107 >= 6.5,IF($E$3:$E$107 < 7.5,$F$3:$F$107))),"") -> 
A37: 3.949 | B37: 104.498 | C37: 5.952 | D37: 112.919 | E37: 5.699 | F37: 175.694 | G37: 3.797 | H37: 157.321 | J37: 8 mg/day | K37: =COUNTIFS($E$3:$E$107,">=7.5",$E$3:$E$107,"<8.5") -> 22 | L37: =IF($K$37 > 0,AVERAGEIFS($E$3:$E$107,$E$3:$E$107,">=7.5",$E$3:$E$107,"<8.5"),"") -> 8.000 | M37: =IF($K$37 > 1,STDEV(IF($E$3:$E$107 >= 7.5,IF($E$3:$E$107 < 8.5,$E$3:$E$107))),"") -> 0.201 | N37: =IF($K$37 > 0,AVERAGEIFS($F$3:$F$107,$E$3:$E$107,">=7.5",$E$3:$E$107,"<8.5"),"") -> 89.552 | O37: =IF($K$37 > 1,STDEV(IF($E$3:$E$107 >= 7.5,IF($E$3:$E$107 < 8.5,$F$3:$F$107))),"") -> 45.965
A38: 3.956 | B38: 50.144 | C38: 5.959 | D38: 63.541 | E38: 5.705 | F38: 137.799 | G38: 3.816 | H38: 74.641
A39: 3.975 | B39: 92.632 | C39: 5.984 | D39: 151.962 | E39: 5.705 | F39: 32.919 | G39: 3.835 | H39: 108.708 | J39: Oral estradiol ± finasteride (E2 and E2+FIN combined)
A40: 3.987 | B40: 53.589 | C40: 5.990 | D40: 102.201 | E40: 5.743 | F40: 336.077 | G40: 3.842 | H40: 39.426 | J40: Dosage | K40: n | L40: Mean E2 dose | M40: SD E2 dose | N40: Mean E2 levels | O40: SD E2 levels
A41: 3.994 | B41: 37.895 | C41: 6.003 | D41: 168.804 | E41: 5.769 | F41: 136.268 | G41: 3.905 | H41: 74.641 | J41: All | K41: =COUNT($G$3:$G$172) -> 170 | L41: =IF($K$41 > 0,AVERAGE($G$3:$G$172),"") -> 5.117 | M41: =IF($K$41 > 1,STDEV($G$3:$G$172),"") -> 1.937 | N41: =IF($K$41 > 0,AVERAGE($H$3:$H$172),"") -> 112.779 | O41: =IF($K$41 > 1,STDEV($H$3:$H$172),"") -> 65.533
A42: 4.013 | B42: 130.909 | C42: 6.003 | D42: 52.440 | E42: 5.781 | F42: 46.316 | G42: 3.905 | H42: 112.536 | J42: 1 mg/day | K42: =COUNTIFS($G$3:$G$172,">=0.5",$G$3:$G$172,"<1.5") -> 5 | L42: =IF($K$42 > 0,AVERAGEIFS($G$3:$G$172,$G$3:$G$172,">=0.5",$G$3:$G$172,"<1.5"),"") -> 0.947 | M42: =IF($K$42 > 1,STDEV(IF($G$3:$G$172 >= 0.5,IF($G$3:$G$172 < 1.5,$G$3:$G$172))),"") -> 0.107 | N42: =IF($K$42 > 0,AVERAGEIFS($H$3:$H$172,$G$3:$G$172,">=0.5",$G$3:$G$172,"<1.5"),"") -> 38.967 | O42: =IF($K$42 > 1,STDEV(IF($G$3:$G$172 >= 0.5,IF($G$3:$G$172 < 1.5,$H$3:$H$172))),"") -> 25.114
A43: 4.032 | B43: 125.167 | C43: 6.010 | D43: 192.153 | E43: 5.794 | F43: 129.761 | G43: 3.918 | H43: 88.804 | J43: 2 mg/day | K43: =COUNTIFS($G$3:$G$172,">=1.5",$G$3:$G$172,"<2.5") -> 24 | L43: =IF($K$43 > 0,AVERAGEIFS($G$3:$G$172,$G$3:$G$172,">=1.5",$G$3:$G$172,"<2.5"),"") -> 2.023 | M43: =IF($K$43 > 1,STDEV(IF($G$3:$G$172 >= 1.5,IF($G$3:$G$172 < 2.5,$G$3:$G$172))),"") -> 0.212 | N43: =IF($K$43 > 0,AVERAGEIFS($H$3:$H$172,$G$3:$G$172,">=1.5",$G$3:$G$172,"<2.5"),"") -> 61.914 | O43: =IF($K$43 > 1,STDEV(IF($G$3:$G$172 >= 1.5,IF($G$3:$G$172 < 2.5,$H$3:$H$172))),"") -> 23.280
A44: 4.076 | B44: 117.895 | C44: 6.010 | D44: 110.622 | E44: 5.807 | F44: 116.746 | G44: 3.924 | H44: 65.455 | J44: 3 mg/day | K44: =COUNTIFS($G$3:$G$172,">=2.5",$G$3:$G$172,"<3.5") -> 3 | L44: =IF($K$44 > 0,AVERAGEIFS($G$3:$G$172,$G$3:$G$172,">=2.5",$G$3:$G$172,"<3.5"),"") -> 2.914 | M44: =IF($K$44 > 1,STDEV(IF($G$3:$G$172 >= 2.5,IF($G$3:$G$172 < 3.5,$G$3:$G$172))),"") -> 0.136 | N44: =IF($K$44 > 0,AVERAGEIFS($H$3:$H$172,$G$3:$G$172,">=2.5",$G$3:$G$172,"<3.5"),"") -> 72.727 | O44: =IF($K$44 > 1,STDEV(IF($G$3:$G$172 >= 2.5,IF($G$3:$G$172 < 3.5,$H$3:$H$172))),"") -> 11.277
A45: 4.114 | B45: 93.397 | C45: 6.029 | D45: 140.478 | E45: 5.807 | F45: 83.828 | G45: 3.924 | H45: 108.708 | J45: 4 mg/day | K45: =COUNTIFS($G$3:$G$172,">=3.5",$G$3:$G$172,"<4.5") -> 34 | L45: =IF($K$45 > 0,AVERAGEIFS($G$3:$G$172,$G$3:$G$172,">=3.5",$G$3:$G$172,"<4.5"),"") -> 4.036 | M45: =IF($K$45 > 1,STDEV(IF($G$3:$G$172 >= 3.5,IF($G$3:$G$172 < 4.5,$G$3:$G$172))),"") -> 0.159 | N45: =IF($K$45 > 0,AVERAGEIFS($H$3:$H$172,$G$3:$G$172,">=3.5",$G$3:$G$172,"<4.5"),"") -> 102.021 | O45: =IF($K$45 > 1,STDEV(IF($G$3:$G$172 >= 3.5,IF($G$3:$G$172 < 4.5,$H$3:$H$172))),"") -> 58.837
A46: 4.146 | B46: 99.139 | C46: 6.029 | D46: 115.215 | E46: 5.851 | F46: 167.656 | G46: 3.949 | H46: 104.498 | J46: 5 mg/day | K46: =COUNTIFS($G$3:$G$172,">=4.5",$G$3:$G$172,"<5.5") -> 0 | L46: =IF($K$46 > 0,AVERAGEIFS($G$3:$G$172,$G$3:$G$172,">=4.5",$G$3:$G$172,"<5.5"),"") ->  | M46: =IF($K$46 > 1,STDEV(IF($G$3:$G$172 >= 4.5,IF($G$3:$G$172 < 5.5,$G$3:$G$172))),"") ->  | N46: =IF($K$46 > 0,AVERAGEIFS($H$3:$H$172,$G$3:$G$172,">=4.5",$G$3:$G$172,"<5.5"),"") ->  | O46: =IF($K$46 > 1,STDEV(IF($G$3:$G$172 >= 4.5,IF($G$3:$G$172 < 5.5,$H$3:$H$172))),"") -> 
A47: 4.146 | B47: 107.560 | C47: 6.048 | D47: 78.852 | E47: 5.851 | F47: 104.880 | G47: 3.956 | H47: 50.144 | J47: 6 mg/day | K47: =COUNTIFS($G$3:$G$172,">=5.5",$G$3:$G$172,"<6.5") -> 80 | L47: =IF($K$47 > 0,AVERAGEIFS($G$3:$G$172,$G$3:$G$172,">=5.5",$G$3:$G$172,"<6.5"),"") -> 5.989 | M47: =IF($K$47 > 1,STDEV(IF($G$3:$G$172 >= 5.5,IF($G$3:$G$172 < 6.5,$G$3:$G$172))),"") -> 0.179 | N47: =IF($K$47 > 0,AVERAGEIFS($H$3:$H$172,$G$3:$G$172,">=5.5",$G$3:$G$172,"<6.5"),"") -> 124.895 | O47: =IF($K$47 > 1,STDEV(IF($G$3:$G$172 >= 5.5,IF($G$3:$G$172 < 6.5,$H$3:$H$172))),"") -> 61.768
A48: 4.165 | B48: 39.426 | C48: 6.067 | D48: 91.866 | E48: 5.851 | F48: 114.450 | G48: 3.975 | H48: 92.632 | J48: 7 mg/day | K48: =COUNTIFS($G$3:$G$172,">=6.5",$G$3:$G$172,"<7.5") -> 0 | L48: =IF($K$48 > 0,AVERAGEIFS($G$3:$G$172,$G$3:$G$172,">=6.5",$G$3:$G$172,"<7.5"),"") ->  | M48: =IF($K$48 > 1,STDEV(IF($G$3:$G$172 >= 6.5,IF($G$3:$G$172 < 7.5,$G$3:$G$172))),"") ->  | N48: =IF($K$48 > 0,AVERAGEIFS($H$3:$H$172,$G$3:$G$172,">=6.5",$G$3:$G$172,"<7.5"),"") ->  | O48: =IF($K$48 > 1,STDEV(IF($G$3:$G$172 >= 6.5,IF($G$3:$G$172 < 7.5,$H$3:$H$172))),"") -> 
A49: 4.184 | B49: 76.172 | C49: 6.086 | D49: 97.990 | E49: 5.857 | F49: 312.727 | G49: 3.987 | H49: 53.589 | J49: 8 mg/day | K49: =COUNTIFS($G$3:$G$172,">=7.5",$G$3:$G$172,"<8.5") -> 24 | L49: =IF($K$49 > 0,AVERAGEIFS($G$3:$G$172,$G$3:$G$172,">=7.5",$G$3:$G$172,"<8.5"),"") -> 7.983 | M49: =IF($K$49 > 1,STDEV(IF($G$3:$G$172 >= 7.5,IF($G$3:$G$172 < 8.5,$G$3:$G$172))),"") -> 0.171 | N49: =IF($K$49 > 0,AVERAGEIFS($H$3:$H$172,$G$3:$G$172,">=7.5",$G$3:$G$172,"<8.5"),"") -> 158.884 | O49: =IF($K$49 > 1,STDEV(IF($G$3:$G$172 >= 7.5,IF($G$3:$G$172 < 8.5,$H$3:$H$172))),"") -> 76.342
A50: 4.184 | B50: 125.933 | C50: 6.092 | D50: 226.220 | E50: 5.870 | F50: 81.148 | G50: 3.994 | H50: 37.895
A51: 4.197 | B51: 96.077 | C51: 6.092 | D51: 26.029 | E51: 5.876 | F51: 94.545 | G51: 4.013 | H51: 130.909
A52: 4.209 | B52: 149.282 | C52: 6.111 | D52: 155.407 | E52: 5.876 | F52: 45.933 | G52: 4.032 | H52: 125.167
A53: 4.273 | B53: 186.794 | C53: 6.111 | D53: 136.651 | E53: 5.876 | F53: 73.110 | G53: 4.044 | H53: 57.416
A54: 4.273 | B54: 71.962 | C54: 6.117 | D54: 175.311 | E54: 5.895 | F54: 112.919 | G54: 4.076 | H54: 117.895
A55: 5.699 | B55: 247.273 | C55: 6.136 | D55: 90.335 | E55: 5.921 | F55: 154.258 | G55: 4.076 | H55: 362.105
A56: 5.705 | B56: 116.364 | C56: 6.174 | D56: 78.469 | E56: 5.921 | F56: 134.737 | G56: 4.114 | H56: 93.397
A57: 5.775 | B57: 34.450 | C57: 6.181 | D57: 105.263 | E57: 5.921 | F57: 36.746 | G57: 4.146 | H57: 99.139
A58: 5.788 | B58: 88.038 | C58: 6.181 | D58: 49.761 | E58: 5.940 | F58: 64.306 | G58: 4.146 | H58: 107.560
A59: 5.813 | B59: 223.541 | C59: 6.193 | D59: 26.411 | E59: 5.946 | F59: 74.641 | G59: 4.165 | H59: 39.426
A60: 5.832 | B60: 100.670 | C60: 6.206 | D60: 157.321 | E60: 5.959 | F60: 167.656 | G60: 4.184 | H60: 76.172
A61: 5.851 | B61: 212.823 | C61: 6.219 | D61: 74.258 | E61: 5.965 | F61: 132.057 | G61: 4.184 | H61: 125.933
A62: 5.895 | B62: 96.459 | C62: 6.225 | D62: 107.177 | E62: 5.965 | F62: 71.196 | G62: 4.197 | H62: 96.077
A63: 5.902 | B63: 148.134 | C63: 6.269 | D63: 166.124 | E63: 5.984 | F63: 123.254 | G63: 4.209 | H63: 149.282
A64: 5.908 | B64: 104.115 | C64: 6.276 | D64: 83.445 | E64: 5.984 | F64: 87.656 | G64: 4.228 | H64: 109.856
A65: 5.921 | B65: 174.163 | C65: 6.307 | D65: 98.373 | E65: 5.997 | F65: 77.321 | G65: 4.273 | H65: 186.794
A66: 5.940 | B66: 227.751 | C66: 7.740 | D66: 317.703 | E66: 6.003 | F66: 99.904 | G66: 4.273 | H66: 143.541
A67: 5.940 | B67: 180.670 | C67: 7.740 | D67: 236.938 | E67: 6.041 | F67: 53.971 | G67: 4.273 | H67: 71.962
A68: 5.946 | B68: 80.383 | C68: 7.759 | D68: 93.014 | E68: 6.111 | F68: 69.282 | G68: 4.298 | H68: 112.536
A69: 5.959 | B69: 164.211 | C69: 7.759 | D69: 82.297 | E69: 6.117 | F69: 154.258 | G69: 5.699 | H69: 247.273
A70: 5.984 | B70: 85.742 | C70: 7.803 | D70: 146.603 | E70: 6.136 | F70: 148.900 | G70: 5.699 | H70: 236.938
A71: 5.984 | B71: 42.105 | C71: 7.823 | D71: 234.258 | E71: 6.136 | F71: 116.364 | G71: 5.699 | H71: 144.306
A72: 5.984 | B72: 191.388 | C72: 7.823 | D72: 225.072 | E72: 6.143 | F72: 137.416 | G72: 5.705 | H72: 116.364
A73: 6.029 | B73: 142.775 | C73: 7.829 | D73: 62.775 | E73: 6.155 | F73: 130.909 | G73: 5.724 | H73: 174.163
A74: 6.048 | B74: 112.536 | C74: 7.892 | D74: 197.129 | E74: 6.155 | F74: 44.785 | G74: 5.724 | H74: 76.172
A75: 6.054 | B75: 138.565 | C75: 7.892 | D75: 140.096 | E75: 6.200 | F75: 310.048 | G75: 5.724 | H75: 65.455
A76: 6.079 | B76: 180.287 | C76: 7.937 | D76: 154.258 | E76: 6.200 | F76: 84.211 | G76: 5.724 | H76: 21.053
A77: 6.117 | B77: 66.986 | C77: 8.000 | D77: 62.775 | E77: 6.219 | F77: 209.378 | G77: 5.731 | H77: 44.785
A78: 6.181 | B78: 213.206 | C78: 8.006 | D78: 290.526 | E78: 6.225 | F78: 72.344 | G78: 5.769 | H78: 146.603
A79: 6.219 | B79: 150.431 | C79: 8.089 | D79: 226.220 | E79: 6.244 | F79: 133.206 | G79: 5.769 | H79: 141.244
A80: 6.219 | B80: 115.215 | C80: 8.108 | D80: 171.100 | E80: 6.263 | F80: 107.177 | G80: 5.775 | H80: 34.450
A81: 6.250 | B81: 159.617 | C81: 8.127 | D81: 124.402 | E81: 6.269 | F81: 90.718 | G81: 5.788 | H81: 88.038
A82: 6.276 | B82: 129.378 | C82: 8.133 | D82: 76.172 | E82: 6.288 | F82: 196.364 | G82: 5.788 | H82: 252.249
A83: 6.288 | B83: 181.818 | C83: 8.177 | D83: 213.206 | E83: 6.288 | F83: 84.211 | G83: 5.788 | H83: 31.770
A84: 6.307 | B84: 26.411 | C84: 8.177 | D84: 53.589 | E84: 6.295 | F84: 88.038 | G84: 5.794 | H84: 109.474
A85: 6.326 | B85: 80.383 | C85: 8.197 | D85: 163.445 | E85: 6.326 | F85: 74.641 | G85: 5.807 | H85: 175.694
A86: 8.000 | B86: 76.172 | C86: 8.216 | D86: 210.526 | E86: 7.696 | F86: 127.081 | G86: 5.813 | H86: 223.541
A87: 8.152 | B87: 70.813 | C87: 8.216 | D87: 184.115 | E87: 7.696 | F87: 26.411 | G87: 5.826 | H87: 135.502
E88: 7.721 | F88: 71.196 | G88: 5.826 | H88: 69.282
E89: 7.803 | F89: 107.560 | G89: 5.832 | H89: 100.670
E90: 7.829 | F90: 162.297 | G90: 5.851 | H90: 212.823
E91: 7.829 | F91: 26.411 | G91: 5.857 | H91: 58.947
E92: 7.848 | F92: 89.569 | G92: 5.876 | H92: 320.383
E93: 7.886 | F93: 66.986 | G93: 5.883 | H93: 164.211
E94: 7.937 | F94: 104.498 | G94: 5.895 | H94: 44.785
E95: 7.975 | F95: 57.799 | G95: 5.895 | H95: 96.459
E96: 7.975 | F96: 47.081 | G96: 5.902 | H96: 148.134
E97: 7.981 | F97: 99.522 | G97: 5.908 | H97: 104.115
E98: 8.019 | F98: 121.722 | G98: 5.921 | H98: 174.163
E99: 8.038 | F99: 111.388 | G99: 5.940 | H99: 227.751
E100: 8.044 | F100: 26.411 | G100: 5.940 | H100: 180.670
E101: 8.171 | F101: 115.215 | G101: 5.940 | H101: 127.081
E102: 8.190 | F102: 184.498 | G102: 5.946 | H102: 80.383
E103: 8.241 | F103: 87.656 | G103: 5.952 | H103: 112.919
E104: 8.260 | F104: 108.708 | G104: 5.959 | H104: 164.211
E105: 8.260 | F105: 44.785 | G105: 5.959 | H105: 63.541
E106: 8.298 | F106: 29.091 | G106: 5.984 | H106: 85.742
E107: 8.304 | F107: 154.258 | G107: 5.984 | H107: 42.105
G108: 5.984 | H108: 191.388
G109: 5.984 | H109: 151.962
G110: 5.990 | H110: 102.201
G111: 6.003 | H111: 168.804
G112: 6.003 | H112: 52.440
G113: 6.010 | H113: 192.153
G114: 6.010 | H114: 110.622
G115: 6.029 | H115: 142.775
G116: 6.029 | H116: 140.478
G117: 6.029 | H117: 115.215
G118: 6.048 | H118: 112.536
G119: 6.048 | H119: 78.852
G120: 6.054 | H120: 138.565
G121: 6.067 | H121: 91.866
G122: 6.079 | H122: 180.287
G123: 6.086 | H123: 97.990
G124: 6.092 | H124: 226.220
G125: 6.092 | H125: 26.029
G126: 6.111 | H126: 155.407
G127: 6.111 | H127: 136.651
G128: 6.117 | H128: 66.986
G129: 6.117 | H129: 175.311
G130: 6.136 | H130: 90.335
G131: 6.174 | H131: 78.469
G132: 6.181 | H132: 213.206
G133: 6.181 | H133: 105.263
G134: 6.181 | H134: 49.761
G135: 6.193 | H135: 26.411
G136: 6.206 | H136: 157.321
G137: 6.219 | H137: 150.431
G138: 6.219 | H138: 115.215
G139: 6.219 | H139: 74.258
G140: 6.225 | H140: 107.177
G141: 6.250 | H141: 159.617
G142: 6.269 | H142: 166.124
G143: 6.276 | H143: 129.378
G144: 6.276 | H144: 83.445
G145: 6.288 | H145: 181.818
G146: 6.307 | H146: 26.411
G147: 6.307 | H147: 98.373
G148: 6.326 | H148: 80.383
G149: 7.740 | H149: 317.703
G150: 7.740 | H150: 236.938
G151: 7.759 | H151: 93.014
G152: 7.759 | H152: 82.297
G153: 7.803 | H153: 146.603
G154: 7.823 | H154: 234.258
G155: 7.823 | H155: 225.072
G156: 7.829 | H156: 62.775
G157: 7.892 | H157: 197.129
G158: 7.892 | H158: 140.096
G159: 7.937 | H159: 154.258
G160: 8.000 | H160: 76.172
G161: 8.000 | H161: 62.775
G162: 8.006 | H162: 290.526
G163: 8.089 | H163: 226.220
G164: 8.108 | H164: 171.100
G165: 8.127 | H165: 124.402
G166: 8.133 | H166: 76.172
G167: 8.152 | H167: 70.813
G168: 8.177 | H168: 213.206
G169: 8.177 | H169: 53.589
G170: 8.197 | H170: 163.445
G171: 8.216 | H171: 210.526
G172: 8.216 | H172: 184.115

Sheet T levels
A1: Raw data (x = E2 pg/mL, y = T ng/dL) | H1: Combined data | O1: Graphs
A2: E2, x | B2: E2, y | C2: E2+FIN, x | D2: E2+FIN, y | E2: E2+SPL, x | F2: E2+SPL, y | P2: Oral E2 | Q2: Oral E2 + Fin | R2: Oral E2 + Spiro | S2: Oral E2 ± Fin
A3: 25.252 | B3: 28.662 | C3: 55.663 | D3: 610.191 | E3: 32.312 | F3: 680.892 | H3: Oral estradiol only
A4: 24.438 | B4: 19.745 | C4: 96.936 | D4: 569.427 | E4: 29.325 | F4: 435.032 | H4: Dosage | I4: n | J4: Mean E2 levels | K4: SD E2 levels | L4: Mean T levels | M4: SD T levels
A5: 49.961 | B5: 40.764 | C5: 62.452 | D5: 517.834 | E5: 99.108 | F5: 387.898 | H5: All | I5: =COUNT($A$3:$A$70) -> 68 | J5: =IF($I$5 > 0,AVERAGE($A$3:$A$70),"") -> 103.812 | K5: =IF($I$5 > 1,STDEV($A$3:$A$70),"") -> 53.569 | L5: =IF($I$5 > 0,AVERAGE($B$3:$B$70),"") -> 80.480 | M5: =IF($I$5 > 1,STDEV($B$3:$B$70),"") -> 94.714
A6: 50.504 | B6: 28.662 | C6: 43.445 | D6: 510.828 | E6: 44.531 | F6: 387.898 | H6: 0–50 pg/mL | I6: =COUNTIFS($A$3:$A$70,">=0",$A$3:$A$70,"<50") -> 11 | J6: =IF($I$6 > 0,AVERAGEIFS($A$3:$A$70,$A$3:$A$70,">=0",$A$3:$A$70,"<50"),"") -> 32.559 | K6: =IF($I$6 > 1,STDEV(IF($A$3:$A$70 >= 0,IF($A$3:$A$70 < 50,$A$3:$A$70))),"") -> 8.405 | L6: =IF($I$6 > 0,AVERAGEIFS($B$3:$B$70,$A$3:$A$70,">=0",$A$3:$A$70,"<50"),"") -> 159.757 | M6: =IF($I$6 > 1,STDEV(IF($A$3:$A$70 >= 0,IF($A$3:$A$70 < 50,$B$3:$B$70))),"") -> 138.756
A7: 53.491 | B7: 30.573 | C7: 69.783 | D7: 444.586 | E7: 43.445 | F7: 260.510 | H7: 50–100 pg/mL | I7: =COUNTIFS($A$3:$A$70,">=50",$A$3:$A$70,"<100") -> 24 | J7: =IF($I$7 > 0,AVERAGEIFS($A$3:$A$70,$A$3:$A$70,">=50",$A$3:$A$70,"<100"),"") -> 75.587 | K7: =IF($I$7 > 1,STDEV(IF($A$3:$A$70 >= 50,IF($A$3:$A$70 < 100,$A$3:$A$70))),"") -> 14.529 | L7: =IF($I$7 > 0,AVERAGEIFS($B$3:$B$70,$A$3:$A$70,">=50",$A$3:$A$70,"<100"),"") -> 83.280 | M7: =IF($I$7 > 1,STDEV(IF($A$3:$A$70 >= 50,IF($A$3:$A$70 < 100,$B$3:$B$70))),"") -> 105.901
A8: 56.478 | B8: 16.561 | C8: 87.975 | D8: 442.038 | E8: 42.358 | F8: 243.312 | H8: 100–150 pg/mL | I8: =COUNTIFS($A$3:$A$70,">=100",$A$3:$A$70,"<150") -> 21 | J8: =IF($I$8 > 0,AVERAGEIFS($A$3:$A$70,$A$3:$A$70,">=100",$A$3:$A$70,"<150"),"") -> 124.502 | K8: =IF($I$8 > 1,STDEV(IF($A$3:$A$70 >= 100,IF($A$3:$A$70 < 150,$A$3:$A$70))),"") -> 14.326 | L8: =IF($I$8 > 0,AVERAGEIFS($B$3:$B$70,$A$3:$A$70,">=100",$A$3:$A$70,"<150"),"") -> 50.349 | M8: =IF($I$8 > 1,STDEV(IF($A$3:$A$70 >= 100,IF($A$3:$A$70 < 150,$B$3:$B$70))),"") -> 36.917
A9: 57.564 | B9: 7.006 | C9: 88.790 | D9: 413.376 | E9: 53.491 | F9: 234.395 | H9: 150–200 pg/mL | I9: =COUNTIFS($A$3:$A$70,">=150",$A$3:$A$70,"<200") -> 8 | J9: =IF($I$9 > 0,AVERAGEIFS($A$3:$A$70,$A$3:$A$70,">=150",$A$3:$A$70,"<200"),"") -> 170.350 | K9: =IF($I$9 > 1,STDEV(IF($A$3:$A$70 >= 150,IF($A$3:$A$70 < 200,$A$3:$A$70))),"") -> 14.773 | L9: =IF($I$9 > 0,AVERAGEIFS($B$3:$B$70,$A$3:$A$70,">=150",$A$3:$A$70,"<200"),"") -> 60.589 | M9: =IF($I$9 > 1,STDEV(IF($A$3:$A$70 >= 150,IF($A$3:$A$70 < 200,$B$3:$B$70))),"") -> 57.399
A10: 64.624 | B10: 19.108 | C10: 73.584 | D10: 408.917 | E10: 121.102 | F10: 235.032 | H10: 200–250 pg/mL | I10: =COUNTIFS($A$3:$A$70,">=200",$A$3:$A$70,"<250") -> 4 | J10: =IF($I$10 > 0,AVERAGEIFS($A$3:$A$70,$A$3:$A$70,">=200",$A$3:$A$70,"<250"),"") -> 227.405 | K10: =IF($I$10 > 1,STDEV(IF($A$3:$A$70 >= 200,IF($A$3:$A$70 < 250,$A$3:$A$70))),"") -> 14.087 | L10: =IF($I$10 > 0,AVERAGEIFS($B$3:$B$70,$A$3:$A$70,">=200",$A$3:$A$70,"<250"),"") -> 43.631 | M10: =IF($I$10 > 1,STDEV(IF($A$3:$A$70 >= 200,IF($A$3:$A$70 < 250,$B$3:$B$70))),"") -> 32.943
A11: 68.697 | B11: 19.745 | C11: 51.590 | D11: 414.013 | E11: 132.234 | F11: 208.280 | H11: 250–300 pg/mL | I11: =COUNTIFS($A$3:$A$70,">=250",$A$3:$A$70,"<300") -> 0 | J11: =IF($I$11 > 0,AVERAGEIFS($A$3:$A$70,$A$3:$A$70,">=250",$A$3:$A$70,"<300"),"") ->  | K11: =IF($I$11 > 1,STDEV(IF($A$3:$A$70 >= 250,IF($A$3:$A$70 < 300,$A$3:$A$70))),"") ->  | L11: =IF($I$11 > 0,AVERAGEIFS($B$3:$B$70,$A$3:$A$70,">=250",$A$3:$A$70,"<300"),"") ->  | M11: =IF($I$11 > 1,STDEV(IF($A$3:$A$70 >= 250,IF($A$3:$A$70 < 300,$B$3:$B$70))),"") -> 
A12: 72.498 | B12: 33.758 | C12: 76.571 | D12: 390.446 | E12: 128.161 | F12: 193.631 | H12: 300–350 pg/mL | I12: =COUNTIFS($A$3:$A$70,">=300",$A$3:$A$70,"<350") -> 0 | J12: =IF($I$12 > 0,AVERAGEIFS($A$3:$A$70,$A$3:$A$70,">=300",$A$3:$A$70,"<350"),"") ->  | K12: =IF($I$12 > 1,STDEV(IF($A$3:$A$70 >= 300,IF($A$3:$A$70 < 350,$A$3:$A$70))),"") ->  | L12: =IF($I$12 > 0,AVERAGEIFS($B$3:$B$70,$A$3:$A$70,">=300",$A$3:$A$70,"<350"),"") ->  | M12: =IF($I$12 > 1,STDEV(IF($A$3:$A$70 >= 300,IF($A$3:$A$70 < 350,$B$3:$B$70))),"") -> 
A13: 74.670 | B13: 26.752 | C13: 74.942 | D13: 380.892 | E13: 310.900 | F13: 80.892 | H13: 350–400 pg/mL | I13: =COUNTIFS($A$3:$A$70,">=350",$A$3:$A$70,"<400") -> 0 | J13: =IF($I$13 > 0,AVERAGEIFS($A$3:$A$70,$A$3:$A$70,">=350",$A$3:$A$70,"<40"),"") ->  | K13: =IF($I$13 > 1,STDEV(IF($A$3:$A$70 >= 350,IF($A$3:$A$70 < 400,$A$3:$A$70))),"") ->  | L13: =IF($I$13 > 0,AVERAGEIFS($B$3:$B$70,$A$3:$A$70,">=350",$A$3:$A$70,"<400"),"") ->  | M13: =IF($I$13 > 1,STDEV(IF($A$3:$A$70 >= 350,IF($A$3:$A$70 < 400,$B$3:$B$70))),"") -> 
A14: 76.571 | B14: 19.108 | C14: 106.982 | D14: 390.446 | E14: 312.529 | F14: 80.892
A15: 78.743 | B15: 19.108 | C15: 91.777 | D15: 359.236 | E15: 336.152 | F15: 21.656 | H15: Oral estradiol + finasteride
A16: 77.929 | B16: 12.102 | C16: 139.294 | D16: 380.892 | E16: 196.858 | F16: 83.439 | H16: Dosage | I16: n | J16: Mean E2 levels | K16: SD E2 levels | L16: Mean T levels | M16: SD T levels
A17: 85.803 | B17: 19.745 | C17: 155.314 | D17: 394.904 | E17: 208.805 | F17: 23.567 | H17: All | I17: =COUNT($C$3:$C$99) -> 97 | J17: =IF($I$17 > 0,AVERAGE($C$3:$C$99),"") -> 121.001 | K17: =IF($I$17 > 1,STDEV($C$3:$C$99),"") -> 70.993 | L17: =IF($I$17 > 0,AVERAGE($D$3:$D$99),"") -> 196.277 | M17: =IF($I$17 > 1,STDEV($D$3:$D$99),"") -> 145.672
A18: 87.704 | B18: 21.656 | C18: 168.619 | D18: 375.796 | E18: 159.659 | F18: 168.153 | H18: 0–50 pg/mL | I18: =COUNTIFS($C$3:$C$99,">=0",$C$3:$C$99,"<50") -> 12 | J18: =IF($I$18 > 0,AVERAGEIFS($C$3:$C$99,$C$3:$C$99,">=0",$C$3:$C$99,"<50"),"") -> 32.832 | K18: =IF($I$18 > 1,STDEV(IF($C$3:$C$99 >= 0,IF($C$3:$C$99 < 50,$C$3:$C$99))),"") -> 9.050 | L18: =IF($I$18 > 0,AVERAGEIFS($D$3:$D$99,$C$3:$C$99,">=0",$C$3:$C$99,"<50"),"") -> 213.588 | M18: =IF($I$18 > 1,STDEV(IF($C$3:$C$99 >= 0,IF($C$3:$C$99 < 50,$D$3:$D$99))),"") -> 127.576
A19: 95.849 | B19: 28.662 | C19: 184.911 | D19: 380.892 | E19: 25.252 | F19: 219.745 | H19: 50–100 pg/mL | I19: =COUNTIFS($C$3:$C$99,">=50",$C$3:$C$99,"<100") -> 31 | J19: =IF($I$19 > 0,AVERAGEIFS($C$3:$C$99,$C$3:$C$99,">=50",$C$3:$C$99,"<100"),"") -> 74.040 | K19: =IF($I$19 > 1,STDEV(IF($C$3:$C$99 >= 50,IF($C$3:$C$99 < 100,$C$3:$C$99))),"") -> 13.865 | L19: =IF($I$19 > 0,AVERAGEIFS($D$3:$D$99,$C$3:$C$99,">=50",$C$3:$C$99,"<100"),"") -> 276.741 | M19: =IF($I$19 > 1,STDEV(IF($C$3:$C$99 >= 50,IF($C$3:$C$99 < 100,$D$3:$D$99))),"") -> 163.814
A20: 98.022 | B20: 21.656 | C20: 212.878 | D20: 309.554 | E20: 25.252 | F20: 198.726 | H20: 100–150 pg/mL | I20: =COUNTIFS($C$3:$C$99,">=100",$C$3:$C$99,"<150") -> 26 | J20: =IF($I$20 > 0,AVERAGEIFS($C$3:$C$99,$C$3:$C$99,">=100",$C$3:$C$99,"<150"),"") -> 121.279 | K20: =IF($I$20 > 1,STDEV(IF($C$3:$C$99 >= 100,IF($C$3:$C$99 < 150,$C$3:$C$99))),"") -> 15.060 | L20: =IF($I$20 > 0,AVERAGEIFS($D$3:$D$99,$C$3:$C$99,">=100",$C$3:$C$99,"<150"),"") -> 155.904 | M20: =IF($I$20 > 1,STDEV(IF($C$3:$C$99 >= 100,IF($C$3:$C$99 < 150,$D$3:$D$99))),"") -> 107.703
A21: 105.896 | B21: 12.102 | C21: 225.912 | D21: 312.102 | E21: 44.259 | F21: 201.274 | H21: 150–200 pg/mL | I21: =COUNTIFS($C$3:$C$99,">=150",$C$3:$C$99,"<200") -> 15 | J21: =IF($I$21 > 0,AVERAGEIFS($C$3:$C$99,$C$3:$C$99,">=150",$C$3:$C$99,"<200"),"") -> 169.651 | K21: =IF($I$21 > 1,STDEV(IF($C$3:$C$99 >= 150,IF($C$3:$C$99 < 200,$C$3:$C$99))),"") -> 13.798 | L21: =IF($I$21 > 0,AVERAGEIFS($D$3:$D$99,$C$3:$C$99,">=150",$C$3:$C$99,"<200"),"") -> 151.083 | M21: =IF($I$21 > 1,STDEV(IF($C$3:$C$99 >= 150,IF($C$3:$C$99 < 200,$D$3:$D$99))),"") -> 144.880
A22: 111.870 | B22: 38.217 | C22: 162.374 | D22: 298.089 | E22: 49.418 | F22: 182.166 | H22: 200–250 pg/mL | I22: =COUNTIFS($C$3:$C$99,">=200",$C$3:$C$99,"<250") -> 8 | J22: =IF($I$22 > 0,AVERAGEIFS($C$3:$C$99,$C$3:$C$99,">=200",$C$3:$C$99,"<250"),"") -> 225.504 | K22: =IF($I$22 > 1,STDEV(IF($C$3:$C$99 >= 200,IF($C$3:$C$99 < 250,$C$3:$C$99))),"") -> 9.940 | L22: =IF($I$22 > 0,AVERAGEIFS($D$3:$D$99,$C$3:$C$99,">=200",$C$3:$C$99,"<250"),"") -> 158.439 | M22: =IF($I$22 > 1,STDEV(IF($C$3:$C$99 >= 200,IF($C$3:$C$99 < 250,$D$3:$D$99))),"") -> 110.979
A23: 117.029 | B23: 23.567 | C23: 134.135 | D23: 292.994 | E23: 44.531 | F23: 163.694 | H23: 250–300 pg/mL | I23: =COUNTIFS($C$3:$C$99,">=250",$C$3:$C$99,"<300") -> 2 | J23: =IF($I$23 > 0,AVERAGEIFS($C$3:$C$99,$C$3:$C$99,">=250",$C$3:$C$99,"<300"),"") -> 271.664 | K23: =IF($I$23 > 1,STDEV(IF($C$3:$C$99 >= 250,IF($C$3:$C$99 < 300,$C$3:$C$99))),"") -> 27.072 | L23: =IF($I$23 > 0,AVERAGEIFS($D$3:$D$99,$C$3:$C$99,">=250",$C$3:$C$99,"<300"),"") -> 66.561 | M23: =IF($I$23 > 1,STDEV(IF($C$3:$C$99 >= 250,IF($C$3:$C$99 < 300,$D$3:$D$99))),"") -> 3.153
A24: 117.029 | B24: 47.771 | C24: 103.995 | D24: 333.121 | E24: 71.683 | F24: 163.057 | H24: 300–350 pg/mL | I24: =COUNTIFS($C$3:$C$99,">=300",$C$3:$C$99,"<350") -> 2 | J24: =IF($I$24 > 0,AVERAGEIFS($C$3:$C$99,$C$3:$C$99,">=300",$C$3:$C$99,"<350"),"") -> 320.132 | K24: =IF($I$24 > 1,STDEV(IF($C$3:$C$99 >= 300,IF($C$3:$C$99 < 350,$C$3:$C$99))),"") -> 1.536 | L24: =IF($I$24 > 0,AVERAGEIFS($D$3:$D$99,$C$3:$C$99,">=300",$C$3:$C$99,"<350"),"") -> 67.834 | M24: =IF($I$24 > 1,STDEV(IF($C$3:$C$99 >= 300,IF($C$3:$C$99 < 350,$D$3:$D$99))),"") -> 58.100
A25: 108.340 | B25: 59.873 | C25: 108.883 | D25: 291.083 | E25: 66.524 | F25: 161.146 | H25: 350–400 pg/mL | I25: =COUNTIFS($C$3:$C$99,">=350",$C$3:$C$99,"<400") -> 1 | J25: =IF($I$25 > 0,AVERAGEIFS($C$3:$C$99,$C$3:$C$99,">=350",$C$3:$C$99,"<400"),"") -> 362.219 | K25: =IF($I$25 > 1,STDEV(IF($C$3:$C$99 >= 350,IF($C$3:$C$99 < 400,$C$3:$C$99))),"") ->  | L25: =IF($I$25 > 0,AVERAGEIFS($D$3:$D$99,$C$3:$C$99,">=350",$C$3:$C$99,"<400"),"") -> 40.764 | M25: =IF($I$25 > 1,STDEV(IF($C$3:$C$99 >= 350,IF($C$3:$C$99 < 400,$D$3:$D$99))),"") -> 
A26: 103.724 | B26: 62.420 | C26: 106.982 | D26: 291.083 | E26: 62.452 | F26: 146.497
A27: 103.181 | B27: 68.790 | C27: 98.022 | D27: 300.637 | E27: 56.478 | F27: 128.025 | H27: Oral estradiol + spironolactone
A28: 98.836 | B28: 71.975 | C28: 90.962 | D28: 305.732 | E28: 63.538 | F28: 118.471 | H28: Dosage | I28: n | J28: Mean E2 levels | K28: SD E2 levels | L28: Mean T levels | M28: SD T levels
A29: 125.175 | B29: 28.662 | C29: 83.902 | D29: 300.637 | E29: 67.611 | F29: 122.930 | H29: All | I29: =COUNT($E$3:$E$105) -> 103 | J29: =IF($I$29 > 0,AVERAGE($E$3:$E$105),"") -> 100.260 | K29: =IF($I$29 > 1,STDEV($E$3:$E$105),"") -> 57.857 | L29: =IF($I$29 > 0,AVERAGE($F$3:$F$105),"") -> 95.214 | M29: =IF($I$29 > 1,STDEV($F$3:$F$105),"") -> 100.249
A30: 123.817 | B30: 21.656 | C30: 61.637 | D30: 314.650 | E30: 103.995 | F30: 154.140 | H30: 0–50 pg/mL | I30: =COUNTIFS($E$3:$E$105,">=0",$E$3:$E$105,"<50") -> 20 | J30: =IF($I$30 > 0,AVERAGEIFS($E$3:$E$105,$E$3:$E$105,">=0",$E$3:$E$105,"<50"),"") -> 36.208 | K30: =IF($I$30 > 1,STDEV(IF($E$3:$E$105 >= 0,IF($E$3:$E$105 < 50,$E$3:$E$105))),"") -> 8.535 | L30: =IF($I$30 > 0,AVERAGEIFS($F$3:$F$105,$E$3:$E$105,">=0",$E$3:$E$105,"<50"),"") -> 186.401 | M30: =IF($I$30 > 1,STDEV(IF($E$3:$E$105 >= 0,IF($E$3:$E$105 < 50,$F$3:$F$105))),"") -> 162.015
A31: 125.175 | B31: 12.102 | C31: 53.491 | D31: 338.217 | E31: 115.128 | F31: 135.032 | H31: 50–100 pg/mL | I31: =COUNTIFS($E$3:$E$105,">=50",$E$3:$E$105,"<100") -> 39 | J31: =IF($I$31 > 0,AVERAGEIFS($E$3:$E$105,$E$3:$E$105,">=50",$E$3:$E$105,"<100"),"") -> 76.703 | K31: =IF($I$31 > 1,STDEV(IF($E$3:$E$105 >= 50,IF($E$3:$E$105 < 100,$E$3:$E$105))),"") -> 12.965 | L31: =IF($I$31 > 0,AVERAGEIFS($F$3:$F$105,$E$3:$E$105,">=50",$E$3:$E$105,"<100"),"") -> 84.615 | M31: =IF($I$31 > 1,STDEV(IF($E$3:$E$105 >= 50,IF($E$3:$E$105 < 100,$F$3:$F$105))),"") -> 70.028
A32: 128.161 | B32: 21.656 | C32: 39.643 | D32: 307.643 | E32: 140.380 | F32: 80.892 | H32: 100–150 pg/mL | I32: =COUNTIFS($E$3:$E$105,">=100",$E$3:$E$105,"<150") -> 28 | J32: =IF($I$32 > 0,AVERAGEIFS($E$3:$E$105,$E$3:$E$105,">=100",$E$3:$E$105,"<150"),"") -> 123.313 | K32: =IF($I$32 > 1,STDEV(IF($E$3:$E$105 >= 100,IF($E$3:$E$105 < 150,$E$3:$E$105))),"") -> 12.778 | L32: =IF($I$32 > 0,AVERAGEIFS($F$3:$F$105,$E$3:$E$105,">=100",$E$3:$E$105,"<150"),"") -> 67.084 | M32: =IF($I$32 > 1,STDEV(IF($E$3:$E$105 >= 100,IF($E$3:$E$105 < 150,$F$3:$F$105))),"") -> 61.844
A33: 138.208 | B33: 12.102 | C33: 25.524 | D33: 250.955 | E33: 151.513 | F33: 61.783 | H33: 150–200 pg/mL | I33: =COUNTIFS($E$3:$E$105,">=150",$E$3:$E$105,"<200") -> 12 | J33: =IF($I$33 > 0,AVERAGEIFS($E$3:$E$105,$E$3:$E$105,">=150",$E$3:$E$105,"<200"),"") -> 165.836 | K33: =IF($I$33 > 1,STDEV(IF($E$3:$E$105 >= 150,IF($E$3:$E$105 < 200,$E$3:$E$105))),"") -> 14.247 | L33: =IF($I$33 > 0,AVERAGEIFS($F$3:$F$105,$E$3:$E$105,">=150",$E$3:$E$105,"<200"),"") -> 57.803 | M33: =IF($I$33 > 1,STDEV(IF($E$3:$E$105 >= 150,IF($E$3:$E$105 < 200,$F$3:$F$105))),"") -> 38.331
A34: 142.281 | B34: 35.669 | C34: 25.524 | D34: 255.414 | E34: 158.301 | F34: 56.688 | H34: 200–250 pg/mL | I34: =COUNTIFS($E$3:$E$105,">=200",$E$3:$E$105,"<250") -> 1 | J34: =IF($I$34 > 0,AVERAGEIFS($E$3:$E$105,$E$3:$E$105,">=200",$E$3:$E$105,"<250"),"") -> 208.805 | K34: =IF($I$34 > 1,STDEV(IF($E$3:$E$105 >= 200,IF($E$3:$E$105 < 250,$E$3:$E$105))),"") ->  | L34: =IF($I$34 > 0,AVERAGEIFS($F$3:$F$105,$E$3:$E$105,">=200",$E$3:$E$105,"<250"),"") -> 23.567 | M34: =IF($I$34 > 1,STDEV(IF($E$3:$E$105 >= 200,IF($E$3:$E$105 < 250,$F$3:$F$105))),"") -> 
A35: 148.254 | B35: 33.758 | C35: 30.411 | D35: 236.306 | E35: 161.016 | F35: 59.236 | H35: 250–300 pg/mL | I35: =COUNTIFS($E$3:$E$105,">=250",$E$3:$E$105,"<300") -> 0 | J35: =IF($I$35 > 0,AVERAGEIFS($E$3:$E$105,$E$3:$E$105,">=250",$E$3:$E$105,"<300"),"") ->  | K35: =IF($I$35 > 1,STDEV(IF($E$3:$E$105 >= 250,IF($E$3:$E$105 < 300,$E$3:$E$105))),"") ->  | L35: =IF($I$35 > 0,AVERAGEIFS($F$3:$F$105,$E$3:$E$105,">=250",$E$3:$E$105,"<300"),"") ->  | M35: =IF($I$35 > 1,STDEV(IF($E$3:$E$105 >= 250,IF($E$3:$E$105 < 300,$F$3:$F$105))),"") -> 
A36: 148.254 | B36: 28.025 | C36: 57.564 | D36: 269.427 | E36: 167.533 | F36: 36.943 | H36: 300–350 pg/mL | I36: =COUNTIFS($E$3:$E$105,">=300",$E$3:$E$105,"<350") -> 3 | J36: =IF($I$36 > 0,AVERAGEIFS($E$3:$E$105,$E$3:$E$105,">=300",$E$3:$E$105,"<350"),"") -> 319.860 | K36: =IF($I$36 > 1,STDEV(IF($E$3:$E$105 >= 300,IF($E$3:$E$105 < 350,$E$3:$E$105))),"") -> 14.133 | L36: =IF($I$36 > 0,AVERAGEIFS($F$3:$F$105,$E$3:$E$105,">=300",$E$3:$E$105,"<350"),"") -> 61.146 | M36: =IF($I$36 > 1,STDEV(IF($E$3:$E$105 >= 300,IF($E$3:$E$105 < 350,$F$3:$F$105))),"") -> 34.200
A37: 156.400 | B37: 19.745 | C37: 48.332 | D37: 274.522 | E37: 174.593 | F37: 47.771 | H37: 350–400 pg/mL | I37: =COUNTIFS($E$3:$E$105,">=350",$E$3:$E$105,"<400") -> 0 | J37: =IF($I$37 > 0,AVERAGEIFS($E$3:$E$105,$E$3:$E$105,">=350",$E$3:$E$105,"<400"),"") ->  | K37: =IF($I$37 > 1,STDEV(IF($E$3:$E$105 >= 350,IF($E$3:$E$105 < 400,$E$3:$E$105))),"") ->  | L37: =IF($I$37 > 0,AVERAGEIFS($F$3:$F$105,$E$3:$E$105,">=350",$E$3:$E$105,"<400"),"") ->  | M37: =IF($I$37 > 1,STDEV(IF($E$3:$E$105 >= 350,IF($E$3:$E$105 < 400,$F$3:$F$105))),"") -> 
A38: 162.374 | B38: 21.656 | C38: 61.637 | D38: 262.420 | E38: 174.593 | F38: 28.662
A39: 159.659 | B39: 43.312 | C39: 156.400 | D39: 238.854 | E39: 184.639 | F39: 42.675
A40: 181.652 | B40: 17.197 | C40: 232.971 | D40: 205.732 | E40: 25.252 | F40: 158.599
A41: 190.613 | B41: 26.752 | C41: 236.230 | D41: 182.803 | E41: 86.889 | F41: 151.592
A42: 223.196 | B42: 26.752 | C42: 319.046 | D42: 108.917 | E42: 79.829 | F42: 142.038
A43: 226.998 | B43: 12.102 | C43: 290.807 | D43: 64.331 | E43: 43.445 | F43: 127.389
A44: 246.548 | B44: 47.771 | C44: 321.218 | D44: 26.752 | E44: 30.411 | F44: 92.357
A45: 212.878 | B45: 87.898 | C45: 362.219 | D45: 40.764 | E45: 36.385 | F45: 94.904
A46: 180.838 | B46: 175.159 | C46: 252.521 | D46: 68.790 | E46: 52.405 | F46: 106.369
A47: 150.427 | B47: 119.108 | C47: 224.011 | D47: 71.338 | E47: 70.597 | F47: 92.357
A48: 147.440 | B48: 111.465 | C48: 225.912 | D48: 73.885 | E48: 69.511 | F48: 69.427
A49: 130.334 | B49: 159.236 | C49: 236.230 | D49: 31.210 | E49: 72.498 | F49: 70.701
A50: 119.201 | B50: 94.904 | C50: 209.891 | D50: 80.892 | E50: 77.929 | F50: 70.701
A51: 68.697 | B51: 428.025 | C51: 197.944 | D51: 100.000 | E51: 82.816 | F51: 75.796
A52: 38.285 | B52: 395.541 | C52: 154.228 | D52: 133.121 | E52: 87.975 | F52: 85.987
A53: 25.252 | B53: 321.656 | C53: 146.354 | D53: 100.000 | E53: 92.591 | F53: 92.357
A54: 33.398 | B54: 284.076 | C54: 139.294 | D54: 102.548 | E54: 134.135 | F54: 45.223
A55: 35.299 | B55: 263.057 | C55: 139.294 | D55: 97.452 | E55: 139.022 | F55: 47.134
A56: 27.424 | B56: 215.924 | C56: 129.519 | D56: 133.121 | E56: 109.969 | F56: 87.898
A57: 56.478 | B57: 262.420 | C57: 126.261 | D57: 123.567 | E57: 112.141 | F57: 71.338
A58: 83.902 | B58: 234.395 | C58: 117.029 | D58: 112.102 | E58: 105.896 | F58: 66.879
A59: 71.683 | B59: 189.172 | C59: 109.154 | D59: 108.917 | E59: 113.770 | F59: 59.236
A60: 82.545 | B60: 156.688 | C60: 109.154 | D60: 123.567 | E60: 117.029 | F60: 38.217
A61: 83.631 | B61: 137.580 | C61: 106.711 | D61: 94.904 | E61: 114.856 | F61: 36.306
A62: 115.943 | B62: 75.796 | C62: 100.737 | D62: 92.357 | E62: 116.214 | F62: 33.121
A63: 34.213 | B63: 64.331 | C63: 96.664 | D63: 66.879 | E63: 122.188 | F63: 17.197
A64: 70.869 | B64: 153.503 | C64: 108.068 | D64: 64.968 | E64: 127.075 | F64: 40.127
A65: 41.272 | B65: 94.904 | C65: 111.055 | D65: 52.229 | E65: 130.334 | F65: 31.210
A66: 130.062 | B66: 59.873 | C66: 162.645 | D66: 87.898 | E66: 130.877 | F66: 26.752
A67: 125.175 | B67: 49.682 | C67: 191.971 | D67: 23.567 | E67: 135.493 | F67: 28.025
A68: 180.838 | B68: 61.783 | C68: 174.593 | D68: 24.204 | E68: 137.122 | F68: 17.834
A69: 98.293 | B69: 40.764 | C69: 170.791 | D69: 14.650 | E69: 134.950 | F69: 19.745
A70: 23.351 | B70: 28.662 | C70: 173.778 | D70: 12.102 | E70: 137.665 | F70: 20.382
C71: 143.638 | D71: 140.127 | E71: 148.526 | F71: 21.656
C72: 135.221 | D72: 196.178 | E72: 154.500 | F72: 23.567
C73: 64.624 | D73: 196.815 | E73: 153.413 | F73: 37.580
C74: 65.710 | D74: 191.720 | E74: 153.413 | F74: 47.134
C75: 80.915 | D75: 257.962 | E75: 29.054 | F75: 59.873
C76: 91.234 | D76: 250.318 | E76: 37.471 | F76: 66.879
C77: 106.168 | D77: 177.707 | E77: 43.173 | F77: 61.783
C78: 114.042 | D78: 175.159 | E78: 46.160 | F78: 59.873
C79: 74.670 | D79: 123.567 | E79: 55.663 | F79: 78.344
C80: 36.385 | D80: 137.580 | E80: 26.881 | F80: 21.019
C81: 27.153 | D81: 175.159 | E81: 25.252 | F81: 12.102
C82: 43.445 | D82: 97.452 | E82: 53.491 | F82: 12.102
C83: 28.510 | D83: 80.892 | E83: 66.253 | F83: 36.306
C84: 20.365 | D84: 23.567 | E84: 69.240 | F84: 38.217
C85: 64.624 | D85: 94.268 | E85: 76.571 | F85: 52.229
C86: 76.571 | D86: 92.357 | E86: 82.545 | F86: 45.860
C87: 80.372 | D87: 73.248 | E87: 88.790 | F87: 59.873
C88: 73.584 | D88: 54.777 | E88: 86.346 | F88: 54.140
C89: 67.611 | D89: 43.949 | E89: 84.445 | F89: 50.318
C90: 62.723 | D90: 42.675 | E90: 88.518 | F90: 50.318
C91: 58.650 | D91: 47.771 | E91: 89.604 | F91: 47.771
C92: 123.274 | D92: 52.866 | E92: 88.247 | F92: 40.127
C93: 133.592 | D93: 21.656 | E93: 85.531 | F93: 28.662
C94: 143.367 | D94: 21.656 | E94: 82.816 | F94: 22.293
C95: 165.361 | D95: 59.873 | E95: 92.863 | F95: 21.656
C96: 151.513 | D96: 67.516 | E96: 95.035 | F96: 42.675
C97: 174.321 | D97: 54.777 | E97: 97.750 | F97: 42.675
C98: 111.055 | D98: 82.803 | E98: 103.995 | F98: 47.771
C99: 25.252 | D99: 212.739 | E99: 106.168 | F99: 29.299
E100: 108.068 | F100: 5.096
E101: 73.856 | F101: 47.771
E102: 74.399 | F102: 28.662
E103: 73.856 | F103: 42.675
E104: 71.683 | F104: 37.580
E105: 126.261 | F105: 80.892
